bitfinex/quotes_SOLUSD_20250809
["timestamp","ask_amount","ask_price","bid_price","bid_amount"]
[1754736075823,4.86226136,182.4,182.35,4.86226136]
[1754736076029,30.86226136,182.4,182.36,0.65]
[1754736076232,30.86226136,182.4,182.34,44.34414523]
[1754736076439,31.54226136,182.4,182.35,43.70226136]
[1754736076637,4.86226136,182.36,182.35,38.84]
[1754736076952,26.0,182.33,182.32,1e-08]
[1754736077244,30.86226136,182.33,182.32,1e-08]
[1754736077453,5.54226136,182.33,182.32,1e-08]
[1754736077650,37.02682232,182.33,182.32,1e-08]
[1754736079947,36.34682232,182.33,182.32,1e-08]
[1754736080260,37.02682232,182.33,182.32,1e-08]
[1754736080459,40.70335153,182.33,182.32,1e-08]
[1754736081626,37.02682232,182.33,182.32,1e-08]
[1754736082647,30.86226136,182.33,182.32,1e-08]
[1754736084347,31.54226136,182.33,182.32,1e-08]
[1754736084854,30.86226136,182.33,182.32,1e-08]
[1754736086044,26.0,182.33,182.32,1e-08]
[1754736086253,30.86226136,182.35,182.32,0.65000001]
[1754736086629,30.86226136,182.35,182.33,0.65]
[1754736086948,26.0,182.35,182.33,0.65]
[1754736087151,0.68,182.41,182.34,5.51226136]
[1754736087457,26.0,182.38,182.35,39.08]
[1754736087834,30.86226136,182.38,182.35,39.73]
[1754736088032,6.16222166,182.41,182.36,0.65]
[1754736088235,10.34448302,182.41,182.37,0.65]
[1754736089050,26.0,182.4,182.37,0.65]
[1754736089245,4.86226136,182.38,182.32,0.67000001]
[1754736089435,4.86226136,182.35,182.33,39.06]
[1754736089853,4.86226136,182.36,182.33,0.67]
[1754736090033,4.86226136,182.36,182.34,39.06]
[1754736090556,26.0,182.37,182.34,39.73]
[1754736090733,26.0,182.37,182.34,39.06]
[1754736090936,30.86226136,182.37,182.34,39.06]
[1754736091132,4.86226136,182.36,182.34,39.06]
[1754736091342,30.86226136,182.37,182.34,39.06]
[1754736091546,36.3456266,182.37,182.34,39.73]
[1754736092054,26.0,182.39,182.35,5.53226136]
[1754736092264,31.48282318,182.39,182.36,5.53226136]
[1754736092464,31.48282318,182.39,182.35,4.86226136]
[1754736092679,31.48282318,182.39,182.37,0.67]
[1754736093467,26.0,182.4,182.37,0.67]
[1754736094338,31.48253749,182.4,182.37,0.67]
[1754736095043,5.48253749,182.4,182.37,0.67]
[1754736095735,5.48253749,182.4,182.35,4.86226136]
[1754736095957,5.48253749,182.4,182.36,0.67]
[1754736097361,10.34479885,182.4,182.36,0.67]
[1754736097571,10.34479885,182.4,182.35,5.53226136]
[1754736097759,26.65,182.42,182.36,0.67]
[1754736097760,26.0,182.42,182.36,0.67]
[1754736097956,0.03,182.44,182.41,4.86226136]
[1754736098261,0.03,182.44,182.42,39.67]
[1754736099672,0.03,182.44,182.43,5.53226136]
[1754736100352,0.03,182.44,182.43,44.53226136]
[1754736101151,0.03,182.44,182.43,0.67]
[1754736101343,0.03,182.44,182.38,26.0]
[1754736101344,5.54226136,182.44,182.37,0.67]
[1754736101545,4.86226136,182.43,182.38,43.86226136]
[1754736101755,5.54226136,182.44,182.39,5.53226136]
[1754736101954,0.03,182.44,182.41,4.86226136]
[1754736102266,0.03,182.44,182.42,39.65]
[1754736102954,0.03,182.44,182.42,43.84226136]
[1754736103156,0.03,182.44,182.43,0.67]
[1754736103343,0.03,182.44,182.43,5.53226136]
[1754736104341,0.03,182.44,182.4,0.67]
[1754736104592,0.03,182.44,182.41,38.96]
[1754736105078,5.51125411,182.44,182.41,38.96]
[1754736106461,5.51125411,182.44,182.41,39.63]
[1754736106660,30.86226136,182.42,182.34,39.54]
[1754736106876,5.48305735,182.38,182.35,39.08]
[1754736107680,4.86226136,182.37,182.35,39.08]
[1754736107975,5.51226136,182.37,182.35,39.08]
[1754736108648,14.07619039,182.37,182.35,39.08]
[1754736108853,8.59281451,182.37,182.35,39.08]
[1754736109058,0.65,182.36,182.35,39.08]
[1754736109278,13.42628316,182.37,182.35,39.08]
[1754736109445,7.94281451,182.37,182.35,39.08]
[1754736109858,0.65,182.4,182.35,39.75]
[1754736110173,33.94281451,182.41,182.36,0.67]
[1754736110384,7.94281451,182.42,182.37,7.94281451]
[1754736110551,33.94281451,182.43,182.38,8.61281451]
[1754736110751,33.94281451,182.43,182.39,39.73]
[1754736110981,33.94281451,182.43,182.39,39.06]
[1754736111146,7.94281451,182.4,182.36,39.08]
[1754736111349,7.94281451,182.38,182.36,39.08]
[1754736111954,8.59281451,182.37,182.34,0.06]
[1754736112168,7.94281451,182.35,182.34,0.06]
[1754736112772,8.59281451,182.35,182.34,0.06]
[1754736113364,14.07677392,182.35,182.34,0.06]
[1754736113576,8.59281451,182.35,182.34,0.06]
[1754736115184,14.07677392,182.35,182.34,0.06]
[1754736115555,5.48373629,182.36,182.34,0.06]
[1754736115771,7.94281451,182.36,182.34,0.06]
[1754736115986,39.42619922,182.37,182.34,0.06]
[1754736116174,7.94281451,182.36,182.34,0.06]
[1754736117772,34.59281451,182.37,182.34,0.06]
[1754736118474,8.59281451,182.36,182.34,0.06]
[1754736118662,6.13155456,182.43,182.35,8.61281451]
[1754736118862,0.71,182.42,182.37,7.94281451]
[1754736119057,0.71,182.41,182.36,39.69]
[1754736119471,0.71,182.41,182.37,7.94281451]
[1754736119680,40.13436907,182.43,182.36,39.02]
[1754736119878,40.13436907,182.43,182.38,8.61281451]
[1754736120073,0.71,182.42,182.38,8.61281451]
[1754736120463,0.71,182.41,182.37,39.0]
[1754736120683,0.71,182.41,182.38,7.94281451]
[1754736121185,45.89544098,182.43,182.38,8.61281451]
[1754736121367,32.19155456,182.43,182.38,8.61281451]
[1754736121559,31.48155456,182.43,182.39,8.61281451]
[1754736121885,7.97281451,182.44,182.4,7.94281451]
[1754736121886,5.51131817,182.44,182.4,7.94281451]
[1754736122076,5.51131817,182.44,182.41,7.94281451]
[1754736122467,6.22131817,182.44,182.4,7.94281451]
[1754736122665,0.71,182.43,182.4,7.94281451]
[1754736123263,8.65281451,182.42,182.37,7.94281451]
[1754736123479,5.51131817,182.44,182.34,0.06]
[1754736123480,26.0,182.37,182.34,0.06]
[1754736123680,7.94281451,182.35,182.34,0.06]
[1754736123884,5.48395941,182.35,182.34,0.06]
[1754736126595,14.13677392,182.35,182.34,0.06]
[1754736129167,6.19395941,182.35,182.34,0.06]
[1754736129363,14.13677392,182.35,182.34,0.06]
[1754736129977,13.42677392,182.35,182.34,0.06]
[1754736130289,5.48395941,182.35,182.34,0.06]
[1754736133577,31.48365869,182.36,182.34,0.06]
[1754736134096,37.06809694,182.36,182.34,0.06]
[1754736134415,5.58443825,182.35,182.34,0.06]
[1754736135793,11.06839766,182.35,182.34,0.06]
[1754736136290,6.19395941,182.35,182.34,0.06]
[1754736136498,11.06839766,182.35,182.34,0.06]
[1754736138600,11.06839766,182.35,182.34,1e-08]
[1754736139108,49.96839766,182.35,182.34,1e-08]
[1754736144304,11.06839766,182.35,182.34,1e-08]
[1754736144495,49.92839766,182.35,182.34,1e-08]
[1754736144799,11.06839766,182.35,182.34,1e-08]
[1754736144997,69.90905148,182.35,182.34,1e-08]
[1754736145209,73.58680336,182.35,182.34,1e-08]
[1754736146193,78.05672948,182.35,182.34,1e-08]
[1754736146612,73.58680336,182.35,182.34,1e-08]
[1754736146787,68.71236511,182.35,182.34,1e-08]
[1754736147506,34.72680336,182.35,182.34,1e-08]
[1754736147712,73.58680336,182.35,182.34,1e-08]
[1754736149608,26.0,182.32,182.31,1e-08]
[1754736149805,69.71443825,182.32,182.31,1e-08]
[1754736150010,70.37443825,182.32,182.31,1e-08]
[1754736150607,70.37443825,182.32,182.3,1e-08]
[1754736150608,75.85930003,182.32,182.3,1e-08]
[1754736150811,15.10621557,182.3,182.28,1e-08]
[1754736151001,47.39656786,182.29,182.28,1e-08]
[1754736151201,48.05656786,182.29,182.28,1e-08]
[1754736151417,47.39643928,182.29,182.28,1e-08]
[1754736151604,48.05643928,182.29,182.28,1e-08]
[1754736152314,44.37443825,182.29,182.28,1e-08]
[1754736152718,49.86020269,182.29,182.28,1e-08]
[1754736153017,15.10621557,182.28,182.26,1e-08]
[1754736153200,73.43512667,182.27,182.26,1e-08]
[1754736153403,59.52065382,182.27,182.26,1e-08]
[1754736153612,42.57796742,182.27,182.26,1e-08]
[1754736153923,43.77443825,182.27,182.26,1e-08]
[1754736154232,69.79443825,182.27,182.26,1e-08]
[1754736154921,75.28080462,182.27,182.26,1e-08]
[1754736155311,75.94080462,182.27,182.26,1e-08]
[1754736156007,75.28080462,182.27,182.26,1e-08]
[1754736157805,75.94080462,182.27,182.26,1e-08]
[1754736158616,75.28080462,182.27,182.26,1e-08]
[1754736159505,70.40636637,182.27,182.26,1e-08]
[1754736159710,75.28080462,182.27,182.26,1e-08]
[1754736161306,36.36080462,182.27,182.26,1e-08]
[1754736161505,75.24080462,182.27,182.26,1e-08]
[1754736161700,36.36080462,182.27,182.26,1e-08]
[1754736162019,75.24080462,182.27,182.26,1e-08]
[1754736163706,49.24080462,182.27,182.26,0.68000001]
[1754736163909,4.87443825,182.32,182.26,5.55443826]
[1754736164104,4.87443825,182.3,182.27,0.68]
[1754736164325,4.87443825,182.29,182.28,0.68]
[1754736164526,4.87443825,182.29,182.27,0.68]
[1754736164822,4.87443825,182.29,182.28,0.68]
[1754736165029,43.75443825,182.29,182.28,0.68]
[1754736165225,49.24020269,182.29,182.28,0.68]
[1754736165609,44.36576444,182.29,182.28,0.68]
[1754736166017,49.24020269,182.29,182.28,0.68]
[1754736166419,49.24020269,182.29,182.26,0.68000001]
[1754736166618,49.24020269,182.29,182.26,1e-08]
[1754736166827,49.24020269,182.29,182.27,0.68]
[1754736167025,49.24020269,182.29,182.26,1e-08]
[1754736167229,49.24020269,182.29,182.28,0.68]
[1754736168235,49.24020269,182.29,182.26,1e-08]
[1754736168412,49.24020269,182.29,182.27,0.68]
[1754736168834,4.87443825,182.28,182.27,0.68]
[1754736170424,44.36576444,182.29,182.27,0.68]
[1754736170425,49.24020269,182.29,182.27,0.68]
[1754736170628,4.87443825,182.28,182.26,1e-08]
[1754736170938,44.32636637,182.27,182.26,1e-08]
[1754736171139,44.32636637,182.27,182.26,0.68000001]
[1754736171608,44.32636637,182.27,182.26,1e-08]
[1754736171809,49.86080462,182.27,182.26,1e-08]
[1754736172009,75.86080462,182.27,182.26,1e-08]
[1754736172506,75.20080462,182.27,182.26,1e-08]
[1754736173551,49.86080462,182.27,182.26,1e-08]
[1754736178330,53.54085415,182.27,182.26,1e-08]
[1754736178946,49.86080462,182.27,182.26,1e-08]
[1754736179550,53.54128624,182.27,182.26,1e-08]
[1754736180470,9.16684799,182.27,182.26,0.65000001]
[1754736180772,49.18080462,182.27,182.26,1e-08]
[1754736180947,52.86128624,182.27,182.26,1e-08]
[1754736181148,53.58128624,182.27,182.26,1e-08]
[1754736181643,52.86128624,182.27,182.26,1e-08]
[1754736183275,53.58128624,182.27,182.26,1e-08]
[1754736184835,52.86128624,182.27,182.26,1e-08]
[1754736185235,49.18080462,182.27,182.26,1e-08]
[1754736185477,53.58665633,182.27,182.26,1e-08]
[1754736185966,53.61665633,182.27,182.26,1e-08]
[1754736186645,68.7228719,182.27,182.26,1e-08]
[1754736187748,4.87443825,182.23,182.22,0.06]
[1754736187932,47.38028996,182.23,182.22,0.06]
[1754736188344,43.69443825,182.23,182.22,0.06]
[1754736188573,52.86946043,182.23,182.22,0.06]
[1754736191378,53.58946043,182.23,182.22,1e-08]
[1754736192148,52.86946043,182.23,182.22,1e-08]
[1754736194265,75.1820089,182.23,182.22,0.65000001]
[1754736194465,70.30757065,182.23,182.22,0.65000001]
[1754736194666,75.1820089,182.23,182.22,0.65000001]
[1754736197802,44.30757065,182.23,182.22,0.65000001]
[1754736198792,38.82,182.24,182.22,0.65000001]
[1754736199789,44.30735413,182.24,182.22,0.65000001]
[1754736203196,38.82,182.24,182.22,0.65000001]
[1754736203400,44.30731424,182.24,182.22,0.65000001]
[1754736204800,44.30731424,182.24,182.23,0.65]
[1754736205903,0.03,182.27,182.23,5.52443825]
[1754736206201,5.48666739,182.26,182.24,0.65]
[1754736206579,5.48666739,182.26,182.25,0.65]
[1754736210604,5.51645223,182.27,182.25,0.65]
[1754736210982,5.51645223,182.27,182.26,0.68]
[1754736211588,5.51645223,182.27,182.24,0.68]
[1754736212400,5.51645223,182.27,182.25,0.68]
[1754736212595,5.55443825,182.26,182.22,0.68000001]
[1754736212803,4.87443825,182.24,182.22,1e-08]
[1754736213300,44.31645223,182.27,182.23,5.55443825]
[1754736213514,5.51645223,182.27,182.24,0.68]
[1754736214302,5.51645223,182.27,182.25,0.68]
[1754736215923,5.51645223,182.27,182.23,5.55443825]
[1754736216090,5.51645223,182.27,182.23,4.87443825]
[1754736216293,5.51645223,182.27,182.24,0.68]
[1754736216806,11.07089048,182.27,182.23,0.68]
[1754736217108,6.19645223,182.27,182.24,0.68]
[1754736217888,6.19645223,182.27,182.23,4.87443825]
[1754736218092,6.19645223,182.27,182.23,0.68]
[1754736218093,11.07089048,182.27,182.23,0.68]
[1754736218509,6.16690401,182.26,182.22,1e-08]
[1754736218710,4.87443825,182.25,182.22,1e-08]
[1754736218909,4.87443825,182.24,182.22,1e-08]
[1754736219112,0.68,182.25,182.22,1e-08]
[1754736219314,5.48690401,182.26,182.23,5.55443825]
[1754736219487,5.48690401,182.26,182.24,0.68]
[1754736219825,26.0,182.23,182.22,1e-08]
[1754736219987,68.49252227,182.23,182.22,1e-08]
[1754736220184,30.37252227,182.23,182.22,1e-08]
[1754736220520,26.0,182.23,182.22,1e-08]
[1754736220732,31.48757065,182.23,182.22,1e-08]
[1754736222410,37.0420089,182.23,182.22,1e-08]
[1754736224812,36.3620089,182.23,182.22,1e-08]
[1754736225700,37.0420089,182.23,182.22,1e-08]
[1754736225907,0.68,182.26,182.22,0.68000001]
[1754736226101,38.8,182.25,182.22,0.68000001]
[1754736226286,38.8,182.25,182.23,0.68]
[1754736226488,44.31642084,182.27,182.23,4.87443825]
[1754736226710,38.83,182.27,182.24,0.68]
[1754736227324,49.87087955,182.27,182.22,5.55443826]
[1754736228296,44.3164413,182.27,182.23,5.55443825]
[1754736228492,44.3164413,182.27,182.23,4.87443825]
[1754736228829,0.68,182.26,182.23,0.68]
[1754736228996,0.68,182.26,182.22,4.87443826]
[1754736229571,0.68,182.25,182.22,1e-08]
[1754736230490,6.16704664,182.25,182.22,1e-08]
[1754736231301,0.68,182.25,182.22,1e-08]
[1754736231613,0.68,182.25,182.22,5.55443826]
[1754736231807,5.48671139,182.26,182.22,5.55443826]
[1754736232009,6.16724018,182.25,182.22,1e-08]
[1754736232200,6.16724018,182.25,182.22,4.87443826]
[1754736232521,6.16724018,182.25,182.22,5.55443826]
[1754736233094,5.48666739,182.26,182.22,5.55443826]
[1754736233303,6.16666739,182.26,182.22,5.55443826]
[1754736234019,6.16666739,182.26,182.22,4.87443826]
[1754736234411,6.16666739,182.26,182.22,5.55443826]
[1754736234612,6.16666739,182.26,182.22,0.68000001]
[1754736234831,6.16666739,182.26,182.22,5.55443826]
[1754736235739,0.68,182.25,182.22,5.55443826]
[1754736236032,5.48666739,182.26,182.22,5.55443826]
[1754736236330,6.16666739,182.26,182.22,4.87443826]
[1754736236648,6.16666739,182.26,182.23,5.55443825]
[1754736237136,5.48666739,182.26,182.22,4.87443826]
[1754736237326,6.16714743,182.25,182.22,4.87443826]
[1754736237707,6.16714743,182.25,182.22,1e-08]
[1754736237933,6.16714743,182.25,182.22,4.87443826]
[1754736238432,0.68,182.24,182.22,4.87443826]
[1754736239516,0.65,182.23,182.22,1e-08]
[1754736240325,11.0120089,182.23,182.22,1e-08]
[1754736241537,38.8,182.24,182.22,1e-08]
[1754736241830,0.03,182.27,182.22,5.59443826]
[1754736241831,44.286712,182.26,182.22,5.59443826]
[1754736242015,5.486712,182.26,182.23,4.87443825]
[1754736242220,5.486712,182.26,182.23,5.59443825]
[1754736242416,5.486712,182.26,182.23,0.72]
[1754736242624,11.04085606,182.27,182.24,0.72]
[1754736243846,5.52443825,182.26,182.22,1e-08]
[1754736244333,0.65,182.25,182.22,1e-08]
[1754736244560,6.1369186,182.26,182.23,0.72]
[1754736244841,5.4869186,182.26,182.24,0.72]
[1754736245337,5.4869186,182.26,182.22,5.59443826]
[1754736245541,6.1369186,182.26,182.22,5.59443826]
[1754736246238,6.1369186,182.26,182.22,0.72000001]
[1754736246743,5.52443825,182.25,182.22,1e-08]
[1754736247119,0.65,182.24,182.22,1e-08]
[1754736248538,6.13748096,182.24,182.22,1e-08]
[1754736249344,5.48748096,182.24,182.22,1e-08]
[1754736250430,6.13696844,182.25,182.22,1e-08]
[1754736250644,0.65,182.24,182.22,1e-08]
[1754736251743,0.68,182.24,182.22,1e-08]
[1754736252663,0.65,182.23,182.22,1e-08]
[1754736253161,6.13757065,182.23,182.22,1e-08]
[1754736254636,5.48757065,182.23,182.22,1e-08]
[1754736255455,5.51726953,182.24,182.22,0.72000001]
[1754736255638,0.03,182.24,182.22,0.72000001]
[1754736255838,0.03,182.24,182.22,5.59443826]
[1754736256956,0.03,182.24,182.22,4.87443826]
[1754736257150,0.03,182.24,182.23,0.72]
[1754736258768,0.03,182.24,182.22,4.87443826]
[1754736259141,0.03,182.24,182.22,5.59443826]
[1754736259379,0.03,182.24,182.22,0.72000001]
[1754736259742,0.03,182.24,182.23,0.72]
[1754736260267,0.03,182.24,182.22,4.87443826]
[1754736260476,0.03,182.24,182.22,1e-08]
[1754736260665,0.03,182.24,182.22,4.87443826]
[1754736260862,0.03,182.24,182.22,1e-08]
[1754736261175,0.68,182.24,182.22,1e-08]
[1754736261472,0.03,182.24,182.22,5.59443826]
[1754736261838,0.03,182.24,182.22,4.87443826]
[1754736262361,0.03,182.24,182.23,5.59443825]
[1754736263049,0.03,182.24,182.23,0.72]
[1754736263257,0.03,182.24,182.23,5.59443825]
[1754736264652,0.03,182.24,182.22,4.87443826]
[1754736264848,0.68,182.24,182.22,1e-08]
[1754736265075,0.03,182.24,182.22,1e-08]
[1754736265255,0.65,182.23,182.22,1e-08]
[1754736265958,0.03,182.24,182.22,1e-08]
[1754736266163,0.68,182.24,182.22,1e-08]
[1754736266482,6.16728633,182.24,182.22,1e-08]
[1754736269081,5.51728633,182.24,182.22,1e-08]
[1754736269383,0.69,182.23,182.22,1e-08]
[1754736270991,6.17757065,182.23,182.22,1e-08]
[1754736271488,5.48757065,182.23,182.22,1e-08]
[1754736273575,6.20729904,182.24,182.22,1e-08]
[1754736273902,5.51729904,182.24,182.22,1e-08]
[1754736274191,0.03,182.24,182.22,4.87443826]
[1754736274395,5.51728047,182.24,182.22,0.66000001]
[1754736274623,0.03,182.24,182.22,0.66000001]
[1754736274767,0.03,182.24,182.22,5.53443826]
[1754736274972,0.03,182.24,182.23,0.66]
[1754736275380,0.03,182.24,182.22,4.87443826]
[1754736275583,0.03,182.24,182.22,5.53443826]
[1754736276468,0.03,182.24,182.22,0.66000001]
[1754736276669,0.03,182.24,182.22,1e-08]
[1754736277280,0.72,182.24,182.22,1e-08]
[1754736278095,6.20732343,182.24,182.22,1e-08]
[1754736279076,0.69,182.23,182.22,1e-08]
[1754736279573,0.72,182.24,182.22,1e-08]
[1754736280794,6.20742887,182.24,182.22,1e-08]
[1754736281685,0.69,182.23,182.22,1e-08]
[1754736281891,6.17757065,182.23,182.22,1e-08]
[1754736284497,5.56443825,182.23,182.22,1e-08]
[1754736286488,11.0520089,182.23,182.22,1e-08]
[1754736289016,0.03,182.24,182.22,0.66000001]
[1754736289186,0.03,182.24,182.23,0.66]
[1754736289390,0.03,182.24,182.22,0.66000001]
[1754736290203,0.03,182.24,182.22,1e-08]
[1754736290512,0.03,182.24,182.23,0.66]
[1754736291289,0.03,182.24,182.22,0.66000001]
[1754736293910,6.20748409,182.24,182.22,1e-08]
[1754736294431,5.51748409,182.24,182.22,1e-08]
[1754736294988,0.03,182.24,182.22,0.66000001]
[1754736295991,0.03,182.24,182.23,0.66]
[1754736296717,0.03,182.24,182.22,1e-08]
[1754736297132,5.51753367,182.24,182.22,1e-08]
[1754736297288,6.20753367,182.24,182.22,1e-08]
[1754736297816,11.08197192,182.24,182.22,1e-08]
[1754736298313,6.20753367,182.24,182.22,1e-08]
[1754736298900,3.83348464,182.23,182.22,1e-08]
[1754736299106,9.32105529,182.23,182.22,1e-08]
[1754736299709,5.48757065,182.23,182.22,1e-08]
[1754736300597,5.51726953,182.24,182.22,1e-08]
[1754736300803,8.64075417,182.24,182.22,1e-08]
[1754736301323,9.35075417,182.24,182.22,1e-08]
[1754736302119,6.22726953,182.24,182.22,1e-08]
[1754736302709,0.03,182.24,182.23,0.67]
[1754736302914,0.03,182.24,182.23,3.79348464]
[1754736304504,0.03,182.24,182.23,18.89970021]
[1754736304709,0.03,182.24,182.23,26.14103501]
[1754736306107,0.03,182.24,182.23,20.65346436]
[1754736308036,0.03,182.24,182.23,26.14103501]
[1754736309897,0.03,182.24,182.23,57.0182838]
[1754736310297,0.03,182.26,182.24,15.10621557]
[1754736310613,0.03,182.26,182.25,63.58071315]
[1754736310817,0.03,182.26,182.25,64.25071315]
[1754736311328,0.03,182.26,182.25,69.73768159]
[1754736311832,1e-08,182.26,182.25,83.6888552]
[1754736312032,0.03,182.27,182.26,15.10621557]
[1754736312324,0.03,182.28,182.27,45.98346436]
[1754736312523,0.03,182.28,182.27,50.60463797]
[1754736313026,0.03,182.29,182.28,15.10621557]
[1754736313216,0.03,182.35,182.28,30.63930989]
[1754736313407,0.03,182.35,182.29,62.65463797]
[1754736313609,0.03,182.35,182.29,63.32463797]
[1754736315007,0.03,182.35,182.29,66.10017002]
[1754736315209,0.03,182.35,182.3,20.59167909]
[1754736315406,0.03,182.35,182.3,30.63864784]
[1754736315929,0.03,182.35,182.31,41.10621557]
[1754736316131,0.03,182.35,182.31,89.32463797]
[1754736318215,0.03,182.34,182.31,94.8098006]
[1754736318719,0.03,182.34,182.31,56.0898006]
[1754736318935,0.03,182.34,182.31,94.7898006]
[1754736319450,0.03,182.34,182.31,100.21556565]
[1754736319816,0.03,182.34,182.31,95.33831686]
[1754736320223,0.03,182.34,182.31,90.46106807]
[1754736320430,0.03,182.34,182.31,95.33831686]
[1754736320604,0.03,182.34,182.31,90.46106807]
[1754736320930,0.03,182.34,182.31,95.33831686]
[1754736322715,0.03,182.34,182.31,97.53328486]
[1754736323441,0.03,182.34,182.32,15.10621557]
[1754736323622,0.03,182.34,182.32,28.81188676]
[1754736323817,0.03,182.34,182.32,29.48188676]
[1754736325244,0.03,182.34,182.32,34.96674854]
[1754736325438,0.03,182.34,182.32,30.08949975]
[1754736326267,0.03,182.34,182.32,32.28422675]
[1754736326744,0.03,182.34,182.32,37.16147554]
[1754736328249,0.03,182.34,182.32,32.28422675]
[1754736328740,0.03,182.34,182.32,37.16147554]
[1754736328943,0.03,182.34,182.33,68.75034285]
[1754736329146,0.03,182.35,182.34,41.10621557]
[1754736329317,0.03,182.35,182.34,55.52188676]
[1754736329520,0.03,182.38,182.34,55.52188676]
[1754736329721,0.03,182.38,182.37,25.46682236]
[1754736329946,0.03,182.38,182.37,68.09799597]
[1754736330150,0.03,182.38,182.37,68.80799597]
[1754736330526,0.03,182.38,182.37,71.00236197]
[1754736330734,0.03,182.38,182.37,70.29236197]
[1754736330945,0.71,182.38,182.37,26.12900397]
[1754736331150,0.71,182.38,182.37,64.80900397]
[1754736331652,0.71,182.38,182.37,62.61463797]
[1754736331856,0.71,182.38,182.37,19.05738918]
[1754736332950,0.71,182.38,182.37,3.95117361]
[1754736333433,0.71,182.38,182.36,3.95117361]
[1754736333754,0.71,182.38,182.37,3.95117361]
[1754736333926,0.71,182.38,182.35,15.10621557]
[1754736334126,0.71,182.38,182.36,3.98244885]
[1754736335233,0.71,182.38,182.37,3.98293733]
[1754736335545,0.71,182.38,182.36,3.98293733]
[1754736336247,4.87724879,182.37,182.36,3.98293733]
[1754736336443,0.68,182.37,182.33,4.87724879]
[1754736336631,0.68,182.36,182.34,3.98437758]
[1754736337553,0.68,182.35,182.34,3.98437758]
[1754736340926,0.68,182.35,182.34,3.98831326]
[1754736342654,0.68,182.37,182.34,3.98831326]
[1754736342840,0.68,182.36,182.35,3.98831326]
[1754736343051,0.03,182.38,182.35,8.86556205]
[1754736343352,0.71,182.38,182.36,3.98831326]
[1754736343532,0.71,182.38,182.37,3.98831326]
[1754736347241,0.03,182.38,182.37,3.98831326]
[1754736347444,0.03,182.38,182.37,8.86556205]
[1754736347837,0.71,182.38,182.37,3.98831326]
[1754736348037,11.07030614,182.38,182.32,4.93724879]
[1754736348238,5.55724879,182.37,182.33,3.98479781]
[1754736348464,0.68,182.36,182.34,3.98479781]
[1754736348663,0.68,182.36,182.35,3.98479781]
[1754736348845,5.48349095,182.37,182.35,3.98479781]
[1754736349040,0.71,182.38,182.36,3.98479781]
[1754736349264,0.71,182.38,182.37,3.98479781]
[1754736349938,0.71,182.38,182.37,3.98616713]
[1754736351063,11.07030614,182.38,182.37,3.98616713]
[1754736352072,0.71,182.38,182.37,3.98616713]
[1754736352833,0.03,182.38,182.37,3.99230644]
[1754736353650,0.03,182.38,182.37,9.57955523]
[1754736356257,0.03,182.38,182.37,3.99230644]
[1754736356840,0.71,182.38,182.37,3.99230644]
[1754736357356,6.19305735,182.38,182.37,3.99230644]
[1754736358471,0.71,182.38,182.37,3.99230644]
[1754736358859,6.19305735,182.38,182.37,3.99230644]
[1754736359380,0.71,182.38,182.37,3.99230644]
[1754736359740,6.19305735,182.38,182.37,3.99230644]
[1754736359982,11.07030614,182.38,182.37,3.99230644]
[1754736363093,6.19305735,182.38,182.37,3.99230644]
[1754736363297,5.51305735,182.38,182.37,3.99230644]
[1754736363659,0.03,182.38,182.37,3.99230644]
[1754736365864,0.71,182.38,182.37,3.99230644]
[1754736366277,6.19305735,182.38,182.37,3.99230644]
[1754736366596,5.51305735,182.38,182.37,3.99230644]
[1754736367091,0.03,182.38,182.37,3.99230644]
[1754736367996,0.03,182.38,182.37,4.00340129]
[1754736368155,0.03,182.38,182.37,9.54065008]
[1754736369493,0.03,182.38,182.37,4.66340129]
[1754736369990,0.03,182.38,182.37,9.54065008]
[1754736370368,0.03,182.38,182.37,15.02400808]